bitfinex/quotes_ETHUSD_20241104
["timestamp","ask_amount","ask_price","bid_price","bid_amount"]
[1730682531012,4.07874,2451.8,2451.3,4.16970065]
[1730682531328,4.07874,2451.8,2451.3,4.25128131]
[1730682531611,4.07874,2451.8,2451.3,4.16970065]
[1730682532402,8.15751,2451.8,2451.3,0.09031065]
[1730682532620,4.07882,2451.7,2451.3,0.09031065]
[1730682533909,4.971845,2451.8,2451.3,0.09031065]
[1730682534080,4.07882,2451.7,2451.3,0.09031065]
[1730682534503,4.971845,2451.8,2451.3,0.09031065]
[1730682534684,4.85234,2452.0,2451.3,0.09031065]
[1730682535026,4.07807,2452.2,2451.6,4.45773]
[1730682535188,4.07807,2452.2,2451.6,8.5366]
[1730682535531,4.07807,2452.2,2451.7,0.0900441]
[1730682535876,8.15618,2452.2,2451.7,0.0900441]
[1730682536407,4.07816,2452.1,2451.7,0.0900441]
[1730682536980,0.7739,2452.3,2451.7,0.0900441]
[1730682537311,0.061082,2452.4,2451.7,0.0900441]
[1730682537312,4.85253,2451.8,2451.7,0.0900441]
[1730682537522,4.85253,2451.8,2451.3,0.3789]
[1730682537819,4.85253,2451.8,2451.7,0.08995206]
[1730682538024,4.85253,2451.8,2451.3,0.3789]
[1730682538529,8.93124,2451.8,2451.4,0.09018054]
[1730682538717,4.85253,2451.8,2451.4,0.09018054]
[1730682539297,4.07893,2451.7,2451.4,0.09018054]
[1730682539499,4.07898,2451.6,2451.4,0.09018054]
[1730682539715,4.0788,2451.7,2451.4,0.09018054]
[1730682540183,4.07863,2451.8,2451.4,0.09018054]
[1730682540384,4.07841,2452.0,2451.4,1.34303488]
[1730682540631,0.7739,2452.1,2451.4,1.34303488]
[1730682540632,4.07807,2452.2,2451.7,4.45768]
[1730682540787,4.07807,2452.2,2451.7,0.3789]
[1730682540987,4.07815,2452.1,2451.8,0.08992988]
[1730682541220,0.893012,2452.1,2451.8,0.08992988]
[1730682541427,4.85236,2451.9,2451.8,0.08992988]
[1730682541724,0.7739,2451.9,2451.8,0.08992988]
[1730682541930,4.85238,2451.9,2451.8,0.08992988]
[1730682542418,4.85238,2451.9,2451.3,4.45836]
[1730682542600,4.85238,2451.9,2451.8,0.08992988]
[1730682543131,4.85238,2451.9,2451.3,5.70219428]
[1730682543441,8.93098,2451.9,2451.8,0.08992988]
[1730682543753,4.0794,2451.4,2450.9,0.42333667]
[1730682544041,8.15935,2451.2,2450.8,0.3789]
[1730682544339,4.07988,2451.1,2450.8,0.3789]
[1730682545100,4.07997,2451.0,2450.6,3.90032283]
[1730682545333,4.07973,2451.2,2450.6,3.90032283]
[1730682545533,4.07987,2451.1,2450.6,3.90032283]
[1730682546262,4.07973,2451.2,2450.6,3.90032283]
[1730682546263,4.07999,2451.0,2450.6,3.90032283]
[1730682546418,4.08022,2450.9,2450.5,0.3789]
[1730682546618,4.85389,2451.0,2450.5,0.3789]
[1730682547353,4.08022,2450.9,2450.5,0.3789]
[1730682547715,4.85389,2451.0,2450.5,0.3789]
[1730682548551,8.934,2451.0,2450.5,0.3789]
[1730682548955,0.7739,2451.0,2450.5,0.3789]
[1730682549163,4.0794,2451.4,2450.9,3.90032283]
[1730682549460,4.07974,2451.2,2450.9,3.90032283]
[1730682549758,4.895661,2451.2,2450.8,0.3789]
[1730682549948,4.0798,2451.1,2450.6,8.53082283]
[1730682550364,4.0798,2451.1,2450.6,4.45032283]
[1730682550552,4.08015,2450.9,2450.6,3.90032283]
[1730682550751,4.0798,2451.1,2450.6,3.90032283]
[1730682550752,4.56746,2451.1,2450.6,3.90032283]
[1730682551051,6.63812511,2451.9,2450.6,3.90032283]
[1730682551052,8.95532,2451.5,2450.9,7.98041283]
[1730682551346,4.0794,2451.4,2450.9,3.90032283]
[1730682551657,4.974932,2451.4,2450.9,3.90032283]
[1730682551861,4.0794,2451.4,2450.9,3.90032283]
[1730682552662,4.0794,2451.4,2450.9,7.98045283]
[1730682552858,4.0794,2451.4,2450.9,3.90032283]
[1730682553066,4.07974,2451.2,2450.8,0.3789]
[1730682553365,0.407974,2451.1,2450.8,0.3789]
[1730682553581,4.07974,2451.2,2450.8,0.3789]
[1730682555139,4.07943,2451.4,2450.9,4.08012]
[1730682555362,4.07904,2451.6,2451.0,0.55]
[1730682555568,4.07904,2451.6,2451.0,4.62988]
[1730682555747,4.07915,2451.5,2451.0,0.55]
[1730682555979,4.0793,2451.4,2451.0,0.55]
[1730682556177,4.07914,2451.5,2451.0,0.55]
[1730682557960,4.07949,2451.3,2451.1,0.08800159]
[1730682558172,0.407949,2451.3,2451.1,0.08800159]
[1730682558375,4.0793,2451.4,2450.9,3.90032283]
[1730682558592,4.0793,2451.4,2451.2,0.08792541]
[1730682558961,4.07946,2451.3,2450.9,3.90032283]
[1730682560401,4.87646,2451.2,2450.8,0.3789]
[1730682560696,8.95622,2451.2,2450.8,0.083567]
[1730682560899,4.87646,2451.2,2450.8,0.083567]
[1730682561319,4.07941,2451.4,2450.8,0.083567]
[1730682561524,4.07941,2451.4,2450.9,3.90032283]
[1730682561678,5.78118337,2451.8,2451.2,7.97985283]
[1730682561679,4.07881,2451.7,2451.2,7.97985283]
[1730682562017,4.87527,2451.9,2451.3,4.16097256]
[1730682562185,0.7968,2451.9,2451.4,4.07919]
[1730682562517,4.87528,2451.9,2451.3,5.29347254]
[1730682562876,0.7968,2451.9,2451.3,5.29347254]
[1730682563120,4.07864,2451.8,2451.3,5.29347254]
[1730682563321,0.7968,2451.9,2451.3,5.29347254]
[1730682563624,4.87527,2451.9,2451.4,0.0836]
[1730682564119,4.0784,2452.0,2451.4,0.0836]
[1730682564120,4.87032,2452.2,2451.6,4.07894]
[1730682564623,4.87032,2452.2,2451.6,0.08156939]
[1730682564776,8.15675,2452.0,2451.5,3.90032283]
[1730682564979,4.07831,2452.0,2451.5,3.90032283]
[1730682565278,4.07831,2452.0,2451.5,4.79940677]
[1730682565981,8.15673,2452.0,2451.5,4.79940677]
[1730682566607,4.07831,2452.0,2451.5,4.79940677]
[1730682567318,0.7923,2452.2,2451.4,1.01133654]
[1730682567486,4.07848,2451.9,2451.4,0.0836]
[1730682567876,8.15707,2451.9,2451.4,0.0836]
[1730682568075,4.07863,2451.8,2451.4,0.0836]
[1730682568514,4.07883,2451.7,2451.2,3.98392283]
[1730682568710,4.07883,2451.7,2451.2,8.06354283]
[1730682568884,4.07869,2451.8,2451.2,8.06354283]
[1730682569088,4.07869,2451.8,2451.3,0.08158112]
[1730682569290,4.0789,2451.7,2451.2,3.98392283]
[1730682569605,4.97363,2451.8,2451.2,8.06347283]
[1730682569801,4.07869,2451.8,2451.2,8.06347283]
[1730682570001,8.15747,2451.8,2451.2,8.06347283]
[1730682570428,4.07869,2451.8,2451.2,8.06347283]
[1730682570756,4.07947,2451.3,2451.0,0.0836]
[1730682571036,4.07947,2451.3,2450.8,0.0836]
[1730682571191,4.07988,2451.1,2450.8,0.0836]
[1730682571394,4.07988,2451.1,2450.6,7.98093283]
[1730682571395,4.07988,2451.1,2450.6,3.98392283]
[1730682571621,4.07988,2451.1,2450.6,0.0836]
[1730682572134,4.07964,2451.2,2450.6,4.16407]
[1730682572439,8.15936,2451.2,2450.6,4.16407]
[1730682572597,8.15936,2451.2,2450.6,0.0836]
[1730682572598,4.07984,2451.1,2450.6,0.0836]
[1730682573031,4.91259265,2451.2,2450.7,0.08808728]
[1730682573195,4.07964,2451.2,2450.7,0.08808728]
[1730682573535,4.07914,2451.5,2451.0,0.0836]
[1730682573902,4.07914,2451.5,2451.1,0.08783012]
[1730682574102,0.895052,2451.4,2451.1,0.08783012]
[1730682574309,4.974362,2451.4,2451.1,0.08783012]
[1730682575559,4.0795,2451.3,2451.1,0.08783012]
[1730682575834,0.895052,2451.4,2451.1,0.08783012]
[1730682576013,0.895052,2451.4,2450.9,0.55]
[1730682576014,4.07938,2451.4,2450.9,0.55]
[1730682576213,4.07938,2451.4,2451.2,0.08775394]
[1730682576511,4.07938,2451.4,2450.9,0.55]
[1730682576707,4.07938,2451.4,2451.3,0.08767776]
[1730682576913,4.974471,2451.4,2450.9,0.55]
[1730682577136,4.07923,2451.5,2450.9,0.55]
[1730682577333,4.07923,2451.5,2451.0,0.08790631]
[1730682577543,4.07937,2451.4,2451.0,0.08790631]
[1730682577904,4.07923,2451.5,2451.0,0.08790631]
[1730682578397,8.15847,2451.5,2451.0,0.08790631]
[1730682578604,4.07937,2451.4,2451.0,0.08790631]
[1730682579008,4.07923,2451.5,2451.0,0.08790631]
[1730682579009,8.15847,2451.5,2451.0,0.08790631]
[1730682579520,4.07923,2451.5,2451.0,0.08790631]
[1730682579936,8.15845,2451.5,2451.0,0.08790631]
[1730682580527,4.07922,2451.5,2451.0,0.08790631]
[1730682580735,8.15847,2451.5,2451.0,0.08790631]
[1730682580903,4.07932,2451.4,2451.0,0.08790631]
[1730682581533,4.07922,2451.5,2451.0,0.08790631]
[1730682581727,8.15847,2451.5,2451.0,0.08790631]
[1730682582017,1.70246337,2451.9,2451.4,0.0836]
[1730682582216,2.13124896,2452.0,2451.5,3.90032283]
[1730682582217,4.07838,2452.0,2451.5,3.90032283]
[1730682582413,8.15683,2452.0,2451.5,3.98797208]
[1730682582660,8.15683,2452.0,2451.5,5.10305129]
[1730682583233,8.15683,2452.0,2451.5,1.20272846]
[1730682583562,5.78049337,2452.2,2451.5,1.20272846]
[1730682583763,4.07822,2452.1,2451.5,5.28177846]
[1730682584459,4.07822,2452.1,2451.5,1.20272846]
[1730682584663,4.07822,2452.1,2451.5,0.08764925]
[1730682584664,4.07848,2451.9,2451.5,0.08764925]
[1730682584875,4.07867,2451.8,2451.5,0.08764925]
[1730682585156,4.07896,2451.6,2451.5,0.08764925]
[1730682585462,4.07931,2451.4,2451.2,0.0836]
[1730682585636,4.07931,2451.4,2451.0,0.0836]
[1730682585964,4.07954,2451.3,2451.0,0.0836]
[1730682586460,4.86139,2451.5,2451.0,0.0836]
[1730682586620,4.07934,2451.4,2451.0,0.0836]
[1730682587226,4.07948,2451.3,2451.0,0.0836]
[1730682587458,4.07948,2451.3,2450.8,0.0836]
[1730682587623,4.07972,2451.2,2450.8,0.0836]
[1730682587822,4.07972,2451.2,2450.9,0.08800154]
[1730682588547,4.07985,2451.1,2450.9,0.08800154]
[1730682588863,4.9524118,2451.2,2450.9,0.08800154]
[1730682589036,4.07972,2451.2,2450.9,0.08800154]
[1730682590621,4.07983,2451.1,2450.9,0.08800154]
[1730682591274,2.48466337,2451.5,2450.9,0.08800154]
[1730682591275,4.07963,2451.3,2450.9,0.08800154]
[1730682591952,4.0796,2451.3,2450.9,0.08800154]
[1730682592146,8.15919,2451.3,2450.9,0.08800154]
[1730682593272,4.07964,2451.2,2450.9,0.08800154]
[1730682595329,4.0798,2451.1,2450.9,0.08800154]
[1730682595975,4.487599,2451.2,2450.9,0.08800154]
[1730682596151,4.07964,2451.2,2450.9,0.08800154]
[1730682596540,4.07994,2451.1,2450.9,0.08800154]
[1730682597660,4.07996,2451.0,2450.9,0.08800154]
[1730682597862,4.08063,2450.6,2450.3,0.0836]
[1730682598176,4.07996,2451.0,2450.3,0.0836]
[1730682598177,4.08061,2450.7,2450.3,0.0836]
[1730682598882,4.08071,2450.6,2450.3,0.0836]
[1730682599392,4.08106,2450.4,2449.9,0.14480727]
[1730682599546,2.48466337,2450.7,2449.9,0.14480727]
[1730682599740,4.08135,2450.2,2449.9,0.14480727]
[1730682599989,4.08122,2450.3,2449.9,0.14480727]
[1730682600649,4.08141,2450.2,2449.9,0.14480727]
[1730682600980,4.08163,2450.0,2449.9,0.06120727]
[1730682601180,5.306088,2450.0,2449.9,0.06120727]
[1730682601484,4.08154,2450.1,2449.9,0.06120727]
[1730682602540,4.08163,2450.0,2449.9,0.06120727]
[1730682603037,4.08163,2450.0,2449.9,0.142381]
[1730682603450,4.08163,2450.0,2449.9,0.08117373]
[1730682603681,4.08226,2449.7,2449.2,0.0836]
[1730682604055,4.08238,2449.6,2449.3,0.07892424]
[1730682604380,4.08238,2449.6,2449.4,0.07884794]
[1730682604562,4.08238,2449.6,2449.2,0.0836]
[1730682604885,8.16449,2449.7,2449.3,0.07892424]
[1730682605181,4.9803107,2449.7,2449.2,0.0836]
[1730682605391,4.08239,2449.6,2449.4,0.07932143]
[1730682605558,4.08239,2449.6,2449.2,0.0836]
[1730682605885,4.08239,2449.6,2449.3,0.07939773]
[1730682606137,4.86388,2450.0,2449.3,0.07939773]
[1730682606289,4.08168,2450.0,2449.4,3.90032283]
[1730682606491,4.08147,2450.1,2449.4,4.30688029]
[1730682606795,4.86359,2450.2,2449.6,0.0836]
[1730682607218,4.08164,2450.0,2449.7,0.07909576]
[1730682607434,4.86416,2449.8,2449.7,0.07909576]
[1730682607734,4.08253,2449.5,2449.0,8.06709283]
[1730682608032,4.08264,2449.4,2449.0,3.98392283]
[1730682608194,4.08264,2449.4,2449.0,0.0836]
[1730682608393,4.08224,2449.7,2449.0,0.0836]
[1730682608594,4.08255,2449.5,2449.0,0.0836]
[1730682608890,4.08255,2449.5,2449.0,4.16687]
[1730682609492,4.08255,2449.5,2449.0,0.0836]
[1730682610020,4.08272,2449.4,2449.0,0.0836]
[1730682610792,4.08284,2449.3,2449.0,0.0836]
[1730682611089,4.84992,2449.4,2448.8,0.50627116]
[1730682611295,4.84992,2449.4,2448.9,4.08338]
[1730682611602,4.08272,2449.4,2448.9,8.16676]
[1730682611804,4.08272,2449.4,2448.9,4.08338]
[1730682612604,4.08272,2449.4,2448.8,1.35529656]
[1730682612605,4.0828,2449.3,2448.8,1.35529656]
[1730682612804,4.0828,2449.3,2448.8,0.50627116]
[1730682613416,4.0828,2449.3,2448.8,4.58990116]
[1730682613932,4.0828,2449.3,2448.8,0.50627116]
[1730682614136,4.08257,2449.5,2448.8,4.24881213]
[1730682614346,4.08257,2449.5,2448.9,4.08342]
[1730682614694,0.7672,2449.8,2449.1,0.0836]
[1730682614994,3.0,2450.1,2449.5,4.08233]
[1730682614995,4.84878,2450.1,2449.5,4.08233]
[1730682615201,4.84838,2450.3,2449.7,4.0821]
[1730682615421,4.84838,2450.3,2449.8,0.0836]
[1730682615604,4.489056,2450.4,2449.9,4.08175]
[1730682615805,4.08097,2450.4,2449.9,4.08175]
[1730682616005,4.08115,2450.3,2449.8,4.16556]
[1730682616234,4.08144,2450.2,2449.8,0.0836]
[1730682616639,4.08147,2450.1,2449.8,0.0836]
[1730682616812,4.08164,2450.0,2449.8,0.0836]
[1730682617425,4.08185,2449.9,2449.5,0.0836]
[1730682617626,4.91691665,2449.9,2449.5,0.0836]
[1730682617833,4.91695665,2449.9,2449.5,0.0836]
[1730682618017,4.08189,2449.9,2449.6,0.0768783]
[1730682618214,4.84884,2450.0,2449.6,0.0768783]
[1730682618215,4.08164,2450.0,2449.6,0.0768783]
[1730682618638,8.16338,2450.0,2449.6,0.0768783]
[1730682618958,4.08164,2450.0,2449.6,0.0768783]
[1730682619158,8.16339,2450.0,2449.6,0.0768783]
[1730682619461,4.08164,2450.0,2449.6,0.0768783]
[1730682619633,8.16337,2450.0,2449.6,0.0768783]
[1730682620035,4.897977,2450.0,2449.6,0.0768783]
[1730682620239,0.7672,2450.0,2449.6,0.0768783]
[1730682620454,4.08232,2449.6,2449.3,0.0836]
[1730682620756,0.7672,2450.0,2449.3,0.0836]
[1730682620757,4.08204,2449.8,2449.3,0.0836]
[1730682620958,4.08181,2449.9,2449.4,0.55]
[1730682621168,4.08181,2449.9,2449.5,4.16015783]
[1730682621381,4.0816,2450.1,2449.5,8.24261783]
[1730682622022,4.0816,2450.1,2449.6,4.08227]
[1730682622229,4.0814,2450.2,2449.6,5.31475878]
[1730682622467,4.0814,2450.2,2449.6,9.39688878]
[1730682622625,8.16284,2450.2,2449.6,5.31467878]
[1730682622827,4.0814,2450.2,2449.6,5.31467878]
[1730682623030,4.0814,2450.2,2449.7,0.94748366]
[1730682623656,4.08065,2450.6,2449.9,4.08177]
[1730682623657,4.08073,2450.6,2449.9,4.08177]
[1730682623878,4.08063,2450.6,2450.1,7.98176283]
[1730682624056,4.0798,2451.1,2450.4,3.90032283]
[1730682624229,4.0798,2451.1,2450.7,3.90032283]
[1730682624570,4.07946,2451.3,2450.7,7.98078283]
[1730682624782,4.07965,2451.2,2450.7,7.98078283]
[1730682624925,4.07982,2451.1,2450.7,3.90032283]
[1730682625269,0.8237,2451.1,2450.4,3.90032283]
[1730682625431,4.08024,2450.9,2450.4,3.90032283]
[1730682625632,0.8237,2451.1,2450.4,3.90032283]
[1730682625633,4.08033,2450.8,2450.4,3.90032283]
[1730682626433,8.16003,2451.0,2450.4,7.98120283]
[1730682626635,4.07997,2451.0,2450.7,3.90032283]
[1730682628237,4.08039,2450.8,2450.4,3.90032283]
[1730682628562,4.08008,2451.0,2450.5,4.08078]
[1730682628789,4.08008,2451.0,2450.5,4.87891328]
[1730682628948,4.08008,2451.0,2450.5,4.9605209]
[1730682629148,8.15954,2451.2,2450.7,3.90032283]
[1730682629350,4.07931,2451.4,2450.8,0.55]
[1730682629549,4.07931,2451.4,2450.9,4.93317728]
[1730682629796,4.0795,2451.3,2450.8,4.63027]
[1730682630691,4.08005,2451.0,2450.5,0.79813328]
[1730682630998,4.08015,2450.9,2450.4,7.98128283]
[1730682631289,4.08015,2450.9,2450.4,9.18751311]
[1730682631489,4.08005,2451.0,2450.4,9.18751311]
[1730682631674,4.08005,2451.0,2450.5,4.08075]
[1730682631847,4.08005,2451.0,2450.5,4.16235537]
[1730682632564,8.16015,2451.0,2450.4,9.18751311]
[1730682632951,4.08005,2451.0,2450.5,3.93075]
[1730682633180,4.07981,2451.1,2450.5,5.05623401]
[1730682634050,4.07998,2451.0,2450.5,5.05623401]
[1730682634246,4.07998,2451.0,2450.5,5.05623394]
[1730682634672,4.07942,2451.4,2450.7,4.45032283]
[1730682634884,4.0789,2451.7,2451.1,3.90032283]
[1730682635163,6.26521361,2452.4,2451.4,3.90032283]
[1730682635164,4.90194,2452.1,2451.4,3.90032283]
[1730682635388,0.490194,2452.0,2451.5,4.16058266]
[1730682635587,4.07824,2452.1,2451.7,3.90032283]
[1730682635893,0.061082,2452.4,2452.1,0.55]
[1730682636211,4.138822,2452.4,2452.0,3.90032283]
[1730682636395,4.0778,2452.3,2452.2,0.12374101]
[1730682636800,4.07809,2452.2,2451.8,0.55]
[1730682637706,4.07823,2452.1,2451.7,3.90032283]
[1730682638112,8.1565,2452.1,2451.7,3.90032283]
[1730682638271,4.07823,2452.1,2451.7,3.90032283]
[1730682638615,4.07813,2452.1,2451.4,7.97960283]
[1730682638913,4.07797,2452.2,2451.7,3.90032283]
[1730682639115,4.07809,2452.2,2451.7,3.90032283]
[1730682639266,4.0783,2452.0,2451.7,3.75316083]
[1730682639469,4.07809,2452.2,2451.7,3.75316083]
[1730682639697,0.7139172,2452.2,2451.7,7.91347897]
[1730682639892,4.07789,2452.3,2451.8,0.55]
[1730682640104,4.138722,2452.4,2451.8,4.6286]
[1730682641100,0.061082,2452.4,2452.0,4.45032283]
[1730682642425,4.138732,2452.4,2452.0,4.45032283]
[1730682642579,4.07805,2452.2,2451.8,0.55]
[1730682642779,4.4919632,2452.2,2451.7,3.90032283]
[1730682643683,4.07833,2452.0,2451.7,3.90032283]
[1730682644821,4.4919032,2452.2,2451.7,3.90032283]
[1730682645194,8.5700032,2452.2,2451.7,3.90032283]
[1730682645413,0.85700032,2452.1,2451.7,3.90032283]
[1730682645921,4.07831,2452.0,2451.7,3.90032283]
[1730682647761,4.07831,2452.0,2451.4,3.90032283]
[1730682647974,4.57207103,2451.9,2451.8,0.12346812]
[1730682648114,4.0787,2451.8,2451.4,3.90032283]
[1730682648759,4.07885,2451.7,2451.3,0.55]
[1730682648916,4.07897,2451.6,2451.2,0.55]
[1730682649121,4.07897,2451.6,2451.1,3.90032283]
[1730682649326,8.15807,2451.6,2451.1,3.90032283]
[1730682649530,8.94159055,2451.6,2451.1,3.90032283]
[1730682650118,4.86249055,2451.6,2451.1,3.90032283]
[1730682650819,8.94155055,2451.6,2451.1,3.90032283]
[1730682651839,4.86249055,2451.6,2451.1,3.98190837]
[1730682652040,4.86249055,2451.6,2451.1,8.06167837]
[1730682652318,4.07875,2451.8,2451.4,3.90032283]
[1730682652524,4.07857,2451.9,2451.4,3.90032283]
[1730682652937,4.07857,2451.9,2451.4,7.97961283]
[1730682653665,4.07857,2451.9,2451.4,3.90032283]
[1730682653865,4.894267,2451.9,2451.4,3.90032283]
[1730682654536,4.894267,2451.9,2451.4,3.75320583]
[1730682654735,4.07865,2451.8,2451.4,3.75320583]
[1730682655343,8.15741,2451.8,2451.4,3.75320583]
[1730682655667,4.07865,2451.8,2451.4,3.75320583]
[1730682655864,0.815697,2451.9,2451.4,7.83242583]
[1730682656073,0.061082,2452.4,2451.7,3.90032283]
[1730682656361,0.061082,2452.4,2452.1,0.55]
[1730682656520,0.061082,2452.4,2452.2,0.08155107]
[1730682656726,0.061082,2452.4,2452.1,0.63155121]
[1730682657165,0.061082,2452.4,2452.1,0.55]
[1730682658160,0.061082,2452.4,2452.2,4.07788]
[1730682658368,0.061082,2452.4,2452.1,5.48088328]
[1730682658669,0.061082,2452.4,2452.3,0.55]
[1730682659561,0.061082,2452.4,2452.2,0.55]
[1730682662142,0.061082,2452.4,2452.3,3.90032283]
[1730682662341,0.061082,2452.4,2452.3,9.54778682]
[1730682662545,0.061082,2452.4,2452.3,9.46624344]
[1730682662934,0.061082,2452.4,2452.3,9.58903297]
[1730682663351,0.061082,2452.4,2452.3,5.51123297]
[1730682663538,0.061082,2452.4,2452.3,4.57311236]
[1730682665382,0.061082,2452.4,2452.3,8.7324531]
[1730682665595,0.061082,2452.4,2452.3,11.66091236]
[1730682665803,4.0761,2453.4,2452.3,11.66091236]
[1730682665804,4.07599,2453.4,2452.9,7.97712283]
[1730682666091,4.136852,2453.6,2453.0,5.07797637]
[1730682666285,4.136852,2453.6,2453.2,3.90032283]
[1730682666487,4.136842,2453.6,2453.2,3.90032283]
[1730682666688,4.07589,2453.5,2453.3,0.1219579]
[1730682666893,4.07597,2453.4,2453.3,0.1219579]
[1730682667189,4.136832,2453.6,2453.0,4.70811028]
[1730682667503,0.061082,2453.6,2453.2,3.90032283]
[1730682667853,4.136812,2453.6,2453.3,0.1219579]
[1730682668966,4.07597,2453.4,2453.3,0.1219579]
[1730682669566,4.07597,2453.4,2453.0,0.55]
[1730682670208,4.136812,2453.6,2453.2,3.90032283]
[1730682670209,0.061082,2453.6,2453.2,3.90032283]
[1730682670416,0.061082,2453.6,2453.5,3.90032283]
[1730682670560,0.061082,2453.6,2453.5,3.98183027]
[1730682670762,0.061082,2453.6,2453.5,4.65334121]
[1730682671392,0.061082,2453.6,2453.5,8.64764377]
[1730682671769,0.061082,2453.6,2453.5,4.57183377]
[1730682672305,0.061082,2453.6,2453.5,8.64764377]
[1730682672607,0.7809,2454.6,2454.1,4.07474]
[1730682672822,0.002,2454.6,2454.3,3.90032283]
[1730682673114,0.002,2454.6,2454.4,0.12041362]
[1730682673264,0.002,2454.6,2454.4,0.20189565]
[1730682673471,0.002,2454.6,2454.4,4.71188844]
[1730682673919,0.002,2454.6,2454.4,0.12041362]
[1730682674123,4.07608,2454.6,2454.2,0.55]
[1730682674413,4.07606,2454.6,2454.5,0.12020613]
[1730682674621,4.07606,2454.6,2454.2,0.55]
[1730682674622,0.002,2454.6,2454.2,0.55]
[1730682675117,0.002,2454.6,2454.3,0.12025794]
[1730682675693,0.002,2454.6,2454.3,0.20173636]
[1730682676515,0.002,2454.6,2454.3,0.12025794]
[1730682677731,0.002,2454.6,2454.3,0.2017365]
[1730682677893,0.002,2454.6,2454.4,0.55]
[1730682678217,0.002,2454.6,2454.3,0.12025794]
[1730682678420,4.07598,2454.6,2454.5,0.12008931]
[1730682678638,4.07414,2454.5,2454.4,0.12016731]
[1730682678928,4.07414,2454.5,2453.6,4.07555]
[1730682678929,4.07456,2454.3,2453.6,4.07555]
[1730682679130,4.07464,2454.2,2453.6,4.07555]
[1730682679425,4.07483,2454.1,2453.5,8.66711482]
[1730682679719,4.07516,2453.9,2453.2,9.54080654]
[1730682680121,4.07516,2453.9,2453.3,4.07605]
[1730682680421,4.07534,2453.8,2453.2,5.46450654]
[1730682680625,4.07549,2453.7,2453.2,5.46450654]
[1730682680919,4.07537,2453.8,2453.2,5.46450654]
[1730682681133,4.07516,2453.9,2453.2,5.46450654]
[1730682681134,4.07549,2453.7,2453.2,4.59147482]
[1730682681342,4.07549,2453.7,2452.9,4.07669]
[1730682681343,8.15112,2453.7,2453.0,4.07663]
[1730682681632,8.15112,2453.7,2452.9,8.66816482]
[1730682681633,4.07549,2453.7,2452.9,4.59147482]
[1730682681842,4.560576,2453.9,2453.1,4.07631]
[1730682681996,4.07533,2453.8,2453.1,4.07631]
[1730682682332,4.07533,2453.8,2453.2,0.55]
[1730682682545,4.07517,2453.9,2453.2,0.55]
[1730682682546,4.07548,2453.7,2453.2,0.55]
[1730682682697,4.07592,2453.5,2452.9,4.59147482]
[1730682683604,4.07602,2453.4,2452.9,4.59147482]
[1730682683792,4.07616,2453.3,2452.4,4.07751]
[1730682683988,4.07664,2453.0,2452.4,4.07751]
[1730682684193,4.82748,2453.1,2452.4,4.50124991]
[1730682684426,0.7509,2453.4,2452.6,8.66876482]
[1730682684635,0.7509,2453.4,2452.9,4.59147482]
[1730682684832,4.07622,2453.3,2452.9,4.59147482]
[1730682685065,4.82692,2453.4,2452.8,4.15840623]
[1730682686035,4.82692,2453.4,2452.8,0.08152623]
[1730682686338,4.07623,2453.3,2452.7,4.62713]
[1730682686635,5.309612,2453.4,2452.7,0.55]
[1730682686636,5.309642,2453.4,2452.7,0.55]
[1730682686793,9.385742,2453.4,2452.7,5.54887548]
[1730682687192,4.0769,2452.9,2452.4,0.42362991]
[1730682687441,0.7509,2453.3,2452.4,0.42362991]
[1730682687731,8.15316,2453.1,2452.5,0.08154049]
[1730682687905,4.07658,2453.1,2452.5,0.08154049]
[1730682688108,4.07664,2453.0,2452.5,0.08154049]
[1730682688868,4.07634,2453.2,2452.6,0.55]
[1730682689012,4.07634,2453.2,2452.7,0.08153085]
[1730682689212,4.07634,2453.2,2452.6,4.62728]
[1730682689453,4.07634,2453.2,2452.6,6.04510838]
[1730682690362,0.7509,2453.5,2452.9,0.55]
[1730682690649,4.07609,2453.4,2452.9,0.55]
[1730682690857,4.07609,2453.4,2452.9,1.47183348]
[1730682691216,4.8268,2453.5,2452.9,1.47183348]
[1730682691523,4.07639,2453.2,2452.6,0.55]
[1730682691711,8.15283,2453.2,2452.6,0.55]
[1730682692530,4.07639,2453.2,2452.7,0.08153106]
[1730682692726,4.07639,2453.2,2452.7,1.46511455]
[1730682692928,4.07639,2453.2,2452.8,0.11371899]
[1730682693129,4.07617,2453.3,2452.8,0.55]
[1730682693462,4.07644,2453.2,2452.9,0.11364089]
[1730682694129,4.07644,2453.2,2452.6,0.55]
[1730682694754,4.07644,2453.2,2452.7,0.11379709]
[1730682695460,4.07656,2453.1,2452.7,0.11379709]
[1730682695614,4.07653,2453.1,2452.7,0.11379709]
[1730682696015,4.82679,2453.5,2452.8,4.70849539]
[1730682696016,4.07598,2453.4,2452.8,4.70849539]
[1730682696257,4.07598,2453.4,2452.9,0.59587014]
[1730682696429,4.82682,2453.5,2452.9,4.67252014]
[1730682696628,4.07592,2453.5,2453.0,0.08152543]
[1730682696815,4.07592,2453.5,2453.1,0.11350671]
[1730682697265,4.07592,2453.5,2453.0,0.55]
[1730682697444,4.07592,2453.5,2453.1,0.11350671]
[1730682697857,4.0763,2453.3,2453.1,0.11350671]
[1730682698061,8.1526,2453.3,2452.8,0.55]
[1730682698262,4.82647,2453.7,2453.0,7.96911116]
[1730682698553,4.82638,2453.7,2453.1,5.55637564]
[1730682698760,8.90198,2453.7,2453.1,1.47990564]
[1730682699055,4.82638,2453.7,2453.1,5.55635564]
[1730682699257,8.90196,2453.7,2453.1,5.55635564]
[1730682699565,8.90196,2453.7,2453.2,1.35255468]
[1730682699747,4.0758,2453.6,2453.2,1.35255468]
[1730682699919,4.07582,2453.5,2453.3,0.11327511]
[1730682700335,8.9021,2453.7,2453.1,0.08152063]
[1730682700557,8.9021,2453.7,2453.4,0.11317189]
[1730682700866,8.9021,2453.7,2453.5,0.11309383]
[1730682701164,8.9021,2453.7,2453.1,1.29425281]
[1730682701165,4.82639,2453.7,2453.2,0.55]
[1730682701316,4.82639,2453.7,2453.6,0.11301892]